fUST/lending_fUST_20251104
["ID","MTS","AMOUNT","RATE_DAILY","PERIOD"]
[393029405,1762233040519,-500.0,0.00026218,2]
[393029407,1762233040528,-504.93755877,0.00026218,2]
[393029409,1762233040538,-500.0,0.00026218,2]
[393029411,1762233040547,-500.0,0.00026218,2]
[393029413,1762233040557,-500.0,0.00026218,2]
[393029415,1762233040566,-50000.0,0.00026218,2]
[393029417,1762233040575,-150.0,0.00026219,2]
[393029419,1762233040584,-169.48386261,0.00026219,12]
[393029421,1762233040593,-500.0,0.00026219,2]
[393029423,1762233040603,-500.0,0.00026219,2]
[393029425,1762233040612,-500.0,0.00026219,2]
[393029427,1762233040621,-500.0,0.00026219,2]
[393029429,1762233040630,-500.0,0.00026219,2]
[393029431,1762233040639,-500.0,0.00026219,2]
[393029433,1762233040648,-234.72323939,0.00026219,2]
[393029435,1762233040657,-290460.16524331,0.0002622,2]
[393029437,1762233040669,-420.0,0.0002622,2]
[393029439,1762233040679,-509.57516267,0.0002622,2]
[393029666,1762233043009,-8717.7230464,0.0002622,2]
[393029916,1762233204670,150.0,0.00020552,2]
[393029917,1762233205048,3377.25575384,0.000211,2]
[393029918,1762233206291,1201.64,0.0003287,120]
[393029919,1762233335670,150.0,0.00021003,2]
[393029920,1762233400470,150.0,0.00020934,2]
[393029921,1762233434803,8346.58907202,0.0003714,21]
[393029923,1762233667447,164.785903,0.00013699,2]
[393029924,1762233667661,164.785903,0.00020187,2]
[393029926,1762233695799,169.5040302,0.00012794,2]
[393029927,1762233928670,150.0,0.000211,2]
[393029989,1762234232066,-1200.0,0.0002414,2]
[393029990,1762234232076,-300.0,0.00024141,2]
[393029991,1762234232086,-300.0,0.00024141,2]
[393029992,1762234232095,-300.0,0.00024141,2]
[393029993,1762234232105,-300.0,0.00024141,2]
[393029994,1762234232114,-300.0,0.00024141,2]
[393029995,1762234232123,-425.0,0.00024141,2]
[393029996,1762234232132,-334.51145742,0.00024141,2]
[393029997,1762234232141,-845.75914878,0.00024142,2]
[393030027,1762234237936,-493.57029945,0.00024141,2]
[393030028,1762234237951,-500.0,0.00024141,2]
[393030029,1762234237961,-500.0,0.00024141,2]
[393030031,1762234237970,-500.0,0.00024141,2]
[393030033,1762234237981,-522.78228816,0.00024141,2]
[393030035,1762234237996,-500.0,0.00024141,2]
[393030037,1762234238006,-500.0,0.00024141,2]
[393030039,1762234238015,-640.23960313,0.00024141,2]
[393030041,1762234238026,-470.63954931,0.00024141,2]
[393030043,1762234238036,-500.0,0.00024141,2]
[393030045,1762234238047,-500.0,0.00024141,2]
[393030047,1762234238056,-500.0,0.00024141,2]
[393030049,1762234238066,-500.0,0.00024141,2]
[393030051,1762234238077,-352.11228067,0.00024141,2]
[393030053,1762234238086,-9420.65597145,0.00024142,2]
[393030055,1762234238098,-21948.22293114,0.00024142,2]
[393030063,1762234238159,-36387.01274687,0.00024142,2]
[393030065,1762234238168,-502.42978113,0.000242,2]
[393030066,1762234238178,-230.82507551,0.00024304,2]
[393030068,1762234238187,-5000.0,0.00024549,2]
[393030070,1762234238196,-504.52391419,0.0002584,2]
[393030072,1762234238206,-1110.54616509,0.00025889,2]
[393030074,1762234238215,-1200.0,0.00026009,2]
[393030076,1762234238225,-449.61090378,0.0002601,2]
[393030078,1762234238234,-449.61090375,0.00026012,2]
[393030080,1762234238253,-9154.49106037,0.00026012,2]
[393030082,1762234238263,-449.61090375,0.00026015,2]
[393030084,1762234238272,-153.57906834,0.00026017,2]
[393030087,1762234238285,-296.03183541,0.00026017,2]
[393030089,1762234238295,-449.61090375,0.00026019,2]
[393030091,1762234238305,-874.1249528,0.00026019,2]
[393030092,1762234238314,-1131.49,0.00026087,10]
[393030094,1762234238324,-0.04752713,0.00026087,10]
[393030544,1762234243153,-500.0,0.00026097,2]
[393030546,1762234243162,-16.66291156,0.000261,2]
[393030548,1762234243173,-16115.97488054,0.000261,2]
[393030550,1762234243182,-151.0,0.000261,17]
[393030552,1762234243191,-151.0,0.000261,10]
[393030554,1762234243200,-151.0,0.000261,10]
[393030556,1762234243210,-151.0,0.000261,11]
[393030558,1762234243219,-151.0,0.000261,18]
[393030559,1762234243228,-151.0,0.000261,12]
[393030560,1762234243237,-151.0,0.000261,19]
[393030561,1762234243247,-151.0,0.000261,10]
[393030563,1762234243256,-151.0,0.000261,13]
[393030565,1762234243265,-151.0,0.000261,10]
[393030567,1762234243274,-500.0,0.00026108,2]
[393030569,1762234243284,-500.0,0.00026109,2]
[393030571,1762234243294,-500.0,0.00026109,2]
[393030573,1762234243303,-500.0,0.00026109,2]
[393030574,1762234243312,-153.9558735,0.00026109,2]
[393030575,1762234243321,-500.0,0.00026109,2]
[393030576,1762234243330,-500.0,0.00026109,2]
[393030577,1762234243339,-500.0,0.00026109,2]
[393030578,1762234243348,-500.0,0.00026109,2]
[393030579,1762234243358,-500.0,0.00026109,2]
[393030581,1762234243367,-500.0,0.00026109,2]
[393030583,1762234243376,-500.0,0.00026109,2]
[393030585,1762234243385,-500.0,0.00026109,2]
[393030587,1762234243394,-500.0,0.00026109,2]
[393030589,1762234243404,-552.69054169,0.00026109,2]
[393030591,1762234243413,-500.0,0.00026109,2]
[393030593,1762234243421,-500.0,0.00026109,2]
[393030595,1762234243430,-500.0,0.00026109,2]
[393030597,1762234243439,-468.78352559,0.00026109,2]
[393030599,1762234243448,-500.0,0.00026109,2]
[393030601,1762234243457,-294.13263672,0.00026109,2]
[393030603,1762234243466,-500.0,0.00026109,2]
[393030605,1762234243475,-500.0,0.00026109,2]
[393030607,1762234243483,-500.0,0.00026109,2]
[393030609,1762234243493,-500.0,0.00026109,2]
[393030611,1762234243502,-323.54211553,0.00026109,2]
[393030612,1762234243511,-500.0,0.00026109,2]
[393030615,1762234243520,-500.0,0.00026109,2]
[393030617,1762234243529,-500.0,0.00026109,2]
[393030619,1762234243538,-500.0,0.00026109,2]
[393030621,1762234243548,-500.0,0.00026109,2]
[393030623,1762234243557,-500.0,0.00026109,2]
[393030625,1762234243567,-500.0,0.00026109,2]
[393030627,1762234243576,-500.0,0.00026109,2]
[393030629,1762234243585,-500.0,0.00026109,2]
[393030631,1762234243594,-500.0,0.00026109,2]
[393030633,1762234243603,-500.0,0.00026109,2]
[393030634,1762234243613,-288.53,0.00026109,2]
[393030636,1762234243625,-500.0,0.00026109,2]
[393030638,1762234243635,-500.0,0.00026109,2]
[393030640,1762234243643,-500.0,0.00026109,2]
[393030642,1762234243653,-500.0,0.00026109,2]
[393030644,1762234243662,-500.0,0.00026109,2]
[393030646,1762234243672,-500.0,0.00026109,2]
[393030648,1762234243682,-500.0,0.00026109,2]
[393030650,1762234243692,-500.0,0.00026109,2]
[393030652,1762234243701,-213.85030408,0.00026109,2]
[393030654,1762234243714,-785.76,0.00026109,10]
[393030656,1762234243723,-3961.10140341,0.00026109,2]
[393030658,1762234243736,-559.55350549,0.00026109,2]
[393030660,1762234243751,-25439.9581336,0.00026109,2]
[393030662,1762234243761,-151.0,0.00026119,7]
[393030664,1762234243771,-71981.91031431,0.00026119,2]
[393030667,1762234243782,-613018.08968569,0.00026119,2]
[393030669,1762234243791,-500.0,0.00026119,2]
[393030670,1762234243801,-506.27789991,0.00026173,2]
[393030672,1762234243810,-603.17850464,0.00026173,2]
[393030674,1762234243819,-502.5065032,0.00026173,2]
[393030676,1762234243828,-506.72602262,0.00026173,2]
[393030678,1762234243838,-500.0,0.00026173,2]
[393030680,1762234243847,-504.02433699,0.00026173,2]
[393030682,1762234243857,-266.74134873,0.00026173,2]
[393030684,1762234243866,-501.73555332,0.00026173,2]
[393030686,1762234243876,-500.0,0.00026173,2]
[393030688,1762234243886,-502.15661401,0.00026173,2]
[393030690,1762234243895,-516.75945356,0.00026173,2]
[393030692,1762234243904,-500.0,0.00026173,2]
[393030694,1762234243913,-500.0,0.00026173,2]
[393030696,1762234243923,-403.0,0.00026176,2]
[393030698,1762234243932,-406.0,0.00026176,2]
[393030700,1762234243941,-500.0,0.00026218,2]
[393030702,1762234243950,-506.21888033,0.00026218,2]
[393030704,1762234243959,-500.0,0.00026218,2]
[393030706,1762234243968,-500.0,0.00026218,2]
[393030708,1762234243977,-500.0,0.00026218,2]
[393030710,1762234243987,-500.0,0.00026218,2]
[393030712,1762234243999,-500.0,0.00026218,2]
[393030714,1762234244008,-500.0,0.00026219,2]
[393030716,1762234244018,-500.0,0.00026219,2]
[393030718,1762234244027,-500.0,0.00026219,2]
[393030720,1762234244036,-500.0,0.00026219,2]
[393030722,1762234244045,-500.0,0.00026219,2]
[393030732,1762234244130,-500.0,0.00026219,2]
[393030734,1762234244140,-500.0,0.00026219,2]
[393030736,1762234244149,-500.0,0.00026219,2]
[393030738,1762234244159,-500.0,0.00026219,2]
[393030740,1762234244168,-213.03224302,0.00026219,2]
[393030742,1762234244177,-500.0,0.00026219,2]
[393030744,1762234244186,-500.0,0.00026219,2]
[393030746,1762234244195,-453.84869689,0.00026219,2]
[393030748,1762234244205,-151.0,0.00026219,2]
[393030750,1762234244215,-151.0,0.00026219,2]
[393030752,1762234244224,-500.0,0.00026219,2]
[393030754,1762234244234,-1000.0,0.00026219,2]
[393030756,1762234244246,-1000.0,0.00026219,2]
[393030758,1762234244255,-1000.0,0.00026219,2]
[393030760,1762234244265,-1000.0,0.00026219,2]
[393030762,1762234244284,-1000.0,0.00026219,2]
[393030764,1762234244299,-1000.0,0.00026219,2]
[393030766,1762234244308,-957.94888223,0.00026219,2]
[393030768,1762234244317,-417.71006505,0.0002623,2]
[393030769,1762234244327,-151.000003,0.00026273,2]
[393030770,1762234244336,-157.356386,0.00026273,7]
[393030771,1762234244345,-151.0,0.00026274,2]
[393030772,1762234244354,-151.0,0.00026274,2]
[393030773,1762234244363,-500.0,0.00026274,2]
[393030774,1762234244374,-1600.0,0.00026294,2]
[393030775,1762234244383,-151.0,0.00026329,2]
[393030776,1762234244392,-201.95904894,0.00026329,2]
[393030777,1762234244402,-500.0,0.00026329,2]
[393030778,1762234244411,-155.80874489,0.00026383,2]
[393030779,1762234244420,-500.0,0.00026383,2]
[393030780,1762234244429,-513.28596321,0.00026393,2]
[393030781,1762234244438,-162.0,0.000264,5]
[393030782,1762234244447,-519.1823183,0.00026438,2]
[393030783,1762234244456,-1409.9,0.000265,14]
[393030784,1762234244466,-23954.39,0.000265,7]
[393030785,1762234244475,-164.785903,0.00026676,2]
[393030786,1762234244485,-380.68,0.000267,2]
[393030787,1762234244496,-1000.0,0.00026721,2]
[393030788,1762234244506,-1000.0,0.00026721,2]
[393030789,1762234244516,-1000.0,0.00026721,2]
[393030790,1762234244526,-1000.0,0.00026721,2]
[393030791,1762234244536,-174.28,0.000269,7]
[393030792,1762234244546,-500.90071052,0.00027267,2]
[393030793,1762234244555,-503.7406251,0.00027267,2]
[393030794,1762234244564,-502.48442456,0.00027267,2]
[393030795,1762234244574,-1500.0,0.00027268,2]
[393030797,1762234244583,-500.0,0.00027268,2]
[393030798,1762234244592,-500.0,0.00027268,2]
[393030799,1762234244601,-1500.0,0.00027268,2]
[393030800,1762234244610,-500.0,0.0002728,2]
[393030801,1762234244622,-502.56255375,0.00027413,5]
[393030802,1762234244633,-599.30967986,0.0002745,5]
[393030803,1762234244642,-508.08743648,0.00027511,5]
[393030804,1762234244651,-502.1856906,0.00027544,5]
[393030806,1762234244660,-503.12894742,0.00027544,5]
[393030808,1762234244670,-500.0,0.00027544,5]
[393030810,1762234244680,-543.80801796,0.00027602,2]
[393030812,1762234244689,-2867.93,0.000277,2]
[393030814,1762234244698,-500.0,0.000277,3]
[393030816,1762234244710,-2000.0,0.00027816,5]
[393030818,1762234244719,-1000.0,0.00027828,5]
[393030820,1762234244728,-412.0,0.00028139,2]
[393030822,1762234244737,-2500.0,0.00028364,5]
[393030824,1762234244749,-1500.0,0.00028376,5]
[393030826,1762234244759,-3000.0,0.00028912,5]
[393030828,1762234244768,-2000.0,0.00028924,5]
[393030830,1762234244778,-3500.0,0.0002946,5]
[393030832,1762234244788,-2500.0,0.00029472,5]
[393030834,1762234244798,-1034.70110364,0.0003,7]
[393030836,1762234244807,-741.87844937,0.00030008,5]
[393030838,1762234244817,-453.33152398,0.0003002,5]
[393030840,1762234244826,-160.0,0.00030134,2]
[393030842,1762234244835,-181.0,0.0003102,2]
[393030844,1762234244844,-181.0,0.00031068,2]
[393030846,1762234244854,-151.0,0.000311,15]
[393030848,1762234244863,-157.600011,0.00031134,2]
[393030850,1762234244872,-412.0,0.00031139,2]
[393030852,1762234244883,-157.600011,0.00031172,3]
[393030854,1762234244892,-181.0,0.00031201,2]
[393030856,1762234244902,-157.600011,0.00031217,3]
[393030858,1762234244912,-157.600011,0.00031239,7]
[393030860,1762234244921,-157.600011,0.00031262,3]
[393030862,1762234244931,-23954.39,0.000316,7]
[393030864,1762234244940,-182.0,0.00031656,7]
[393030866,1762234244950,-181.0,0.00031656,2]
[393030868,1762234244959,-874.1249528,0.00031705,2]
[393030870,1762234244968,-181.0,0.00031747,2]
[393030872,1762234244978,-181.0,0.00031777,2]
[393030874,1762234244987,-800.0,0.0003185,3]
[393030876,1762234245002,-1409.9,0.000321,14]
[393030878,1762234245012,-501.85812143,0.00032173,5]
[393030880,1762234245022,-407.9006749,0.00032173,5]
[393030882,1762234245032,-503.11331673,0.0003221,5]
[393030884,1762234245042,-181.0,0.00032236,7]
[393030886,1762234245052,-299.83204967,0.00032283,5]
[393030888,1762234245062,-182.0,0.00032465,7]
[393030890,1762234245072,-181.0,0.00032484,2]
[393030892,1762234245082,-168.0,0.00032502,2]
[393030894,1762234245092,-157.600011,0.00032573,10]
[393030896,1762234245102,-181.0,0.00032633,2]
[393030898,1762234245112,-2867.93,0.000327,2]
[393030900,1762234245122,-182.0,0.00032718,2]
[393030902,1762234245132,-168.0,0.00032755,2]
[393030904,1762234245141,-504.29821573,0.00032794,5]
[393030906,1762234245152,-500.8632473,0.00032794,5]
[393030908,1762234245163,-502.16668913,0.00032794,5]
[393030910,1762234245172,-501.82660943,0.00032794,5]
[393030912,1762234245182,-500.0,0.00032794,5]
[393030914,1762234245192,-502.75793603,0.00032794,5]
[393030916,1762234245202,-501.12701129,0.00032794,5]
[393030918,1762234245212,-503.66522938,0.00032794,5]
[393030920,1762234245222,-500.84179656,0.00032794,5]
[393030922,1762234245231,-218.0731856,0.00032794,5]
[393030924,1762234245240,-500.0,0.00032794,5]
[393030926,1762234245256,-500.56330412,0.00032794,3]
[393030928,1762234245265,-503.57439604,0.00032794,5]
[393030930,1762234245275,-505.76202787,0.00032794,5]
[393030932,1762234245284,-502.37885473,0.00032794,5]
[393030934,1762234245293,-534.04655029,0.00032794,5]
[393030936,1762234245302,-503.44920238,0.00032794,5]
[393030938,1762234245311,-500.0,0.00032794,5]
[393030940,1762234245322,-500.0,0.00032794,5]
[393030942,1762234245331,-150.0,0.00032833,5]
[393030944,1762234245340,-543.0,0.00032877,2]
[393030946,1762234245351,-168.0,0.00032896,2]
[393030948,1762234245360,-543.0,0.00032932,2]
[393030950,1762234245370,-543.0,0.00032987,2]
[393030952,1762234245379,-543.0,0.00033041,2]
[393030954,1762234245388,-182.0,0.00033066,2]
[393030956,1762234245397,-543.0,0.00033096,2]
[393030958,1762234245406,-543.0,0.00033151,2]
[393030961,1762234245415,-164.785903,0.00033165,2]
[393030963,1762234245424,-543.0,0.00033206,2]
[393030965,1762234245434,-543.0,0.00033261,2]
[393030967,1762234245443,-543.0,0.00033315,2]
[393030969,1762234245452,-1000.0,0.00033342,5]
[393030971,1762234245463,-1000.0,0.00033342,5]
[393030973,1762234245472,-543.0,0.0003337,2]
[393030975,1762234245482,-157.600011,0.00033379,2]
[393030977,1762234245492,-250.0,0.00033381,5]
[393030979,1762234245506,-543.0,0.00033425,2]
[393030981,1762234245515,-181.0,0.0003343,7]
[393030983,1762234245526,-181.0,0.00033461,2]
[393030984,1762234245536,-543.0,0.0003348,2]
[393030986,1762234245546,-543.0,0.00033535,2]
[393030988,1762234245555,-157.600011,0.00033551,7]
[393030990,1762234245565,-543.0,0.00033589,2]
[393030992,1762234245574,-157.600011,0.00033631,10]
[393030994,1762234245584,-543.0,0.00033644,2]
[393030996,1762234245599,-543.0,0.00033699,2]
[393030999,1762234245612,-181.0,0.00033704,7]
[393031002,1762234245622,-181.0,0.00033713,2]
[393031004,1762234245633,-181.0,0.00033735,2]
[393031007,1762234245644,-543.0,0.00033754,2]
[393031010,1762234245653,-168.0,0.00033778,2]
[393031013,1762234245663,-543.0,0.00033809,2]
[393031016,1762234245672,-158.19935144,0.00033855,2]
[393031019,1762234245681,-543.0,0.00033863,2]
[393031022,1762234245691,-498.17692939,0.0003389,5]
[393031025,1762234245700,-1500.0,0.0003389,5]
[393031028,1762234245713,-543.0,0.00033918,2]
[393031031,1762234245722,-350.0,0.00033929,5]
[393031034,1762234245732,-168.0,0.00033944,2]
[393031043,1762234245808,-543.0,0.00033973,2]
[393031045,1762234245818,-182.0,0.00033981,2]
[393031047,1762234245827,-543.0,0.00034028,2]
[393031049,1762234245836,-543.0,0.00034082,2]
[393031051,1762234245845,-555.05396373,0.00034137,2]
[393031053,1762234245854,-412.0,0.00034139,2]
[393031055,1762234245863,-157.600011,0.00034386,60]
[393031057,1762234245872,-160.0,0.00034418,3]
[393031059,1762234245882,-790.84,0.00034422,60]
[393031061,1762234245892,-2000.0,0.00034438,5]
[393031063,1762234245901,-450.0,0.00034477,5]
[393031065,1762234245910,-23954.39,0.000345,14]
[393031067,1762234245919,-790.84,0.00034522,60]
[393031069,1762234245928,-790.84,0.00034622,60]
[393031071,1762234245937,-790.84,0.00034722,60]
[393031073,1762234245947,-168.0,0.00034796,2]
[393031075,1762234245956,-1008.83,0.000348,60]
[393031077,1762234245965,-174.28,0.000348,7]
[393031079,1762234245974,-1409.9,0.000348,30]
[393031081,1762234245983,-790.84,0.00034822,60]
[393031083,1762234245992,-790.84,0.00034922,60]
[393031085,1762234246004,-150.0,0.00034973,5]
[393031087,1762234246013,-2500.0,0.00034986,5]
[393031089,1762234246022,-159.19253123,0.00034986,30]
[393031091,1762234246031,-30610.903324,0.00034998,2]
[393031093,1762234246040,-155.0,0.00035,120]
[393031095,1762234246049,-790.84,0.00035022,60]
[393031097,1762234246058,-550.0,0.00035025,5]
[393031098,1762234246067,-157.600011,0.00035029,60]
[393031100,1762234246076,-790.84,0.00035122,60]
[393031102,1762234246085,-790.84,0.00035222,60]
[393031104,1762234246095,-159.19253123,0.0003526,30]
[393031106,1762234246103,-3000.0,0.00035294,7]
[393031108,1762234246112,-2867.93,0.000353,14]
[393031110,1762234246121,-790.84,0.00035322,60]
[393031112,1762234246130,-790.84,0.00035422,60]
[393031114,1762234246140,-250.0,0.00035521,5]
[393031116,1762234246149,-790.84,0.00035522,60]
[393031118,1762234246158,-3000.0,0.00035534,5]
[393031120,1762234246168,-159.19253123,0.00035534,30]
[393031122,1762234246177,-650.0,0.00035573,5]
[393031124,1762234246185,-790.84,0.00035622,60]
[393031126,1762234246195,-157.600011,0.00035672,60]
[393031128,1762234246204,-790.84,0.00035722,60]
[393031130,1762234246213,-157.600011,0.00035726,30]
[393031132,1762234246222,-159.19253123,0.00035781,30]
[393031134,1762234246232,-790.84,0.00035822,60]
[393031136,1762234246241,-949.18930624,0.00035842,2]
[393031138,1762234246255,-790.84,0.00035922,60]
[393031140,1762234246264,-949.18930624,0.00035942,2]
[393031142,1762234246274,-21531.09339847,0.00036,60]
[393031144,1762234246283,-162.3614505,0.00036,120]
[393031146,1762234246292,-790.84,0.00036022,60]
[393031148,1762234246301,-949.18930624,0.00036042,2]
[393031150,1762234246310,-159.19253123,0.00036055,30]
[393031152,1762234246319,-150.71302369,0.00036068,5]
[393031155,1762234246333,-3500.0,0.00036082,5]
[393031156,1762234246342,-23954.39,0.000361,14]
[393031158,1762234246352,-3000.0,0.00036116,7]
[393031160,1762234246361,-401.90687713,0.00036121,5]
[393031162,1762234246370,-790.84,0.00036122,60]
[393031164,1762234246380,-949.18930624,0.00036142,2]
[393031167,1762234246390,-199.0,0.0003618,43]
[393031169,1762234246399,-790.84,0.00036222,60]
[393031171,1762234246412,-949.18930624,0.00036242,2]
[393031173,1762234246421,-790.84,0.00036322,60]
[393031175,1762234246431,-159.19253123,0.00036329,30]
[393031177,1762234246440,-949.18930624,0.00036342,2]
[393031179,1762234246450,-157.600011,0.00036407,30]
[393031182,1762234246459,-790.84,0.00036422,60]
[393031185,1762234246468,-949.18930624,0.00036442,2]
[393031187,1762234246478,-1409.9,0.000365,30]
[393031189,1762234246487,-790.84,0.00036522,60]
[393031191,1762234246498,-949.18930624,0.00036542,2]
[393031193,1762234246507,-159.19253123,0.00036575,30]
[393031195,1762234246516,-174.28,0.000366,7]
[393031197,1762234246525,-790.84,0.00036622,60]
[393031199,1762234246537,-4000.0,0.0003663,5]
[393031201,1762234246546,-949.18930624,0.00036642,2]
[393031203,1762234246556,-9222.66213442,0.000367,2]
[393031205,1762234246565,-790.84,0.00036722,60]
[393031207,1762234246575,-287371.74363015,0.00036795,2]
[393031209,1762234246584,-252.028701,0.000368,30]
[393031211,1762234246593,-790.84,0.00036822,60]
[393031213,1762234246602,-159.19253123,0.00036849,30]
[393031215,1762234246612,-790.84,0.00036922,60]
[393031217,1762234246624,-3000.0,0.00036938,7]
[393031219,1762234246634,-142728.41512895,0.00036995,2]
[393031246,1762234246897,-7494.72461363,0.00036995,2]
[393031248,1762234246908,-1420.0,0.00036995,2]
[393031250,1762234246919,-10669.8511728,0.00036995,2]
[393031855,1762234532493,200.26,0.000211,2]
[393031856,1762234679821,150.0,0.00020606,2]
[393031857,1762234745894,150.0,0.00020581,2]
[393031858,1762234810185,150.0,0.00020572,2]
[393031859,1762234874332,150.0,0.00020543,2]
[393031861,1762234940814,150.0,0.00020547,2]
[393031862,1762234954239,300.0,0.000205,2]
[393031863,1762234965074,300.0,0.000205,2]
[393031864,1762234966673,11483.0,0.00037165,30]
[393031865,1762234976141,300.0,0.000205,2]
[393031866,1762234987844,300.0,0.000205,2]
[393031867,1762234998772,300.0,0.000205,2]
[393031868,1762235005005,150.0,0.00020574,2]
[393031869,1762235010978,300.0,0.000205,2]
[393031870,1762235021918,300.0,0.000205,2]
[393031871,1762235032899,300.0,0.000205,2]
[393031872,1762235043520,300.0,0.000205,2]
[393031873,1762235054259,300.0,0.000205,2]
[393031874,1762235069641,150.0,0.0002057,2]
[393031875,1762235073120,300.0,0.000205,2]
[393031876,1762235131163,257.74546538,0.000205,2]
[393031877,1762235134084,150.0,0.00020583,2]
[393031878,1762235202299,150.0,0.00020877,2]
[393031879,1762235268869,150.0,0.0002083,2]
[393031880,1762235335005,150.0,0.00020566,2]
[393031881,1762235347287,169.04948055,0.00037169,30]
[393031883,1762235400603,150.0,0.00020603,2]
[393031949,1762235436925,-150.0,0.00021636,2]
[393031950,1762235436935,-300.0,0.00021743,2]
[393031951,1762235436948,-150.0,0.00022436,2]
[393031952,1762235436957,-450.1,0.00022587,2]
[393031966,1762235438377,-548.9,0.00022587,2]
[393031967,1762235438390,-420.0,0.00023634,2]
[393031968,1762235438401,-177.0,0.00023636,2]
[393031969,1762235438411,-194.37182048,0.00023672,2]
[393031970,1762235438421,-1200.0,0.00023971,2]
[393031971,1762235438430,-1917.71109259,0.00023972,2]
[393031972,1762235438440,-300.0,0.00024131,2]
[393031973,1762235438449,-300.0,0.00024131,2]
[393031974,1762235438459,-500.0,0.00024131,2]
[393031975,1762235438469,-500.0,0.00024131,2]
[393031976,1762235438478,-500.0,0.00024131,2]
[393031977,1762235438488,-500.0,0.00024131,2]
[393031978,1762235438497,-500.0,0.00024131,2]
[393031979,1762235438506,-500.0,0.00024131,2]
[393031980,1762235438516,-500.0,0.00024131,2]
[393031981,1762235438525,-500.0,0.00024131,2]
[393031982,1762235438535,-500.0,0.00024131,2]
[393031983,1762235438544,-500.0,0.00024131,2]
[393031984,1762235438554,-500.0,0.00024131,2]
[393031985,1762235438567,-500.0,0.00024131,2]
[393031986,1762235438577,-500.0,0.00024131,2]
[393031987,1762235438586,-500.0,0.00024131,2]
[393031988,1762235438595,-500.0,0.00024131,2]
[393031989,1762235438605,-457.74176423,0.00024131,2]
[393031990,1762235438615,-500.0,0.00024131,2]
[393031991,1762235438625,-500.0,0.00024131,2]
[393031992,1762235438637,-500.0,0.00024131,2]
[393031993,1762235438647,-500.0,0.00024131,2]
[393031994,1762235438656,-500.0,0.00024131,2]
[393031995,1762235438666,-500.0,0.00024131,2]
[393031996,1762235438677,-500.0,0.00024131,2]
[393031997,1762235438687,-282.6650578,0.00024131,2]
[393031998,1762235438697,-500.0,0.00024131,2]
[393031999,1762235438706,-500.0,0.00024134,2]
[393032000,1762235438717,-159.96937446,0.00024173,2]
[393032001,1762235438732,-500.0,0.00024173,2]
[393032002,1762235438742,-502.5065032,0.00024173,2]
[393032003,1762235438751,-506.72602262,0.00024173,2]
[393032004,1762235438761,-502.15661401,0.00024173,2]
[393032005,1762235438770,-500.0,0.00024173,2]
[393032006,1762235438779,-574.65940348,0.00024173,2]
[393032007,1762235438788,-501.73555332,0.00024173,2]
[393032008,1762235438798,-504.02433699,0.00024173,2]
[393032009,1762235438808,-266.74134873,0.00024173,2]
[393032010,1762235438817,-516.75945356,0.00024173,2]
[393032011,1762235438826,-500.0,0.00024173,2]
[393032012,1762235438836,-500.0,0.00024173,2]
[393032013,1762235438845,-500.0,0.00024173,2]
[393032014,1762235438855,-500.0,0.00024173,2]